bitfinex-derivatives/quotes_ETHF0:USTF0_20250606
["timestamp","ask_amount","ask_price","bid_price","bid_amount"]
[1749234525080,1.7848235,2491.1,2491.0,0.07735567]
[1749234525484,0.80226,2491.1,2491.0,0.07735567]
[1749234525888,0.80226,2491.1,2491.0,0.87964567]
[1749234526286,0.80226,2491.1,2491.0,0.80831216]
[1749234526487,0.80226,2491.1,2491.0,0.00602216]
[1749234526989,0.80226,2491.1,2491.0,0.80831216]
[1749234527191,0.80226,2491.1,2491.0,0.00602216]
[1749234527585,1.78300187,2491.1,2491.0,0.00602216]
[1749234528088,3.13120187,2491.1,2491.0,0.00602216]
[1749234529193,3.13120187,2491.1,2491.0,0.07735567]
[1749234530292,3.13120187,2491.1,2491.0,0.00602216]
[1749234535393,3.13120187,2491.1,2491.0,0.07735567]
[1749234535600,0.80226,2491.1,2491.0,0.87964567]
[1749234535795,0.80226,2491.1,2491.0,0.07735567]
[1749234535994,0.80226,2491.1,2491.0,0.72745567]
[1749234537494,0.80226,2491.1,2491.0,0.65612216]
[1749234537690,0.80251,2490.4,2490.3,0.80249]
[1749234537897,0.80251,2490.4,2490.0,2.00647]
[1749234537898,0.80247,2490.5,2490.4,0.80247]
[1749234538601,0.80844216,2490.7,2490.5,0.80242]
[1749234538792,0.80844216,2490.7,2490.6,0.6865]
[1749234542198,0.00602216,2490.7,2490.6,0.6865]
[1749234542499,0.00602216,2490.7,2490.6,1.48892]
[1749234542799,0.00602216,2490.7,2490.6,3.49412]
[1749234543003,0.80841216,2490.7,2490.6,2.6917]
[1749234544495,0.80841216,2490.7,2490.6,0.6865]
[1749234544896,0.80841216,2490.7,2490.6,1.48892]
[1749234545502,0.00602216,2490.7,2490.6,1.48892]
[1749234546099,0.00602216,2490.7,2490.6,2.79522]
[1749234546297,0.00602216,2490.7,2490.6,12.58222]
[1749234546501,0.00602216,2490.7,2490.6,7.58222]
[1749234549210,0.00602216,2490.7,2490.6,2.79522]
[1749234550606,0.00602216,2490.7,2490.6,2.86655351]
[1749234555813,0.00602216,2490.7,2490.6,2.79522]
[1749234556414,0.80841216,2490.7,2490.6,2.79522]
[1749234556617,0.80841216,2490.7,2490.6,0.6865]
[1749234557112,1.79160297,2490.7,2490.6,0.6865]
[1749234557815,1.79160297,2490.7,2490.6,1.48892]
[1749234558014,0.80242,2490.6,2490.5,4.01023]
[1749234558218,1.78561081,2490.6,2490.5,4.01023]
[1749234559308,1.78561081,2490.6,2490.3,0.6376]
[1749234559309,0.80248,2490.4,2490.3,0.6376]
[1749234559512,1.78567081,2490.4,2490.3,0.6376]
[1749234560111,1.78567081,2490.4,2490.3,1.44012]
[1749234560521,1.78567081,2490.4,2490.3,0.6376]
[1749234560923,1.78567081,2490.4,2490.3,1.44012]
[1749234561223,1.78567081,2490.4,2490.3,0.6376]
[1749234561719,0.80252,2490.3,2490.2,0.80854216]
[1749234561920,1.78571081,2490.3,2490.2,0.80854216]
[1749234563913,1.78571081,2490.3,2490.2,0.00602216]
[1749234564119,1.78571081,2490.3,2489.8,0.80265]
[1749234564120,0.80266,2489.9,2489.8,0.80265]
[1749234564313,0.98319081,2489.9,2489.6,3.2078]
[1749234564623,0.80267,2489.9,2489.8,0.80267]
[1749234564814,1.78433046,2489.9,2489.8,0.80267]
[1749234565020,0.80268,2489.8,2489.7,0.80269]
[1749234565221,0.80268,2489.8,2489.5,2.69663]
[1749234565222,0.98166046,2489.8,2489.3,3.9017]
[1749234565422,0.80276,2489.6,2489.5,0.80274]
[1749234566123,4.4698,2490.1,2489.4,0.6494]
[1749234566326,0.98097353,2490.0,2489.9,0.80264]
[1749234566823,0.6845,2490.2,2489.7,5.21455]
[1749234567023,1.7832031,2490.1,2490.0,0.80261]
[1749234567329,1.48707,2490.2,2490.1,0.80258]
[1749234567629,0.8026,2490.1,2490.0,0.80259]
[1749234568027,0.80261,2490.0,2489.9,2.10693]
[1749234568227,0.80264,2489.9,2489.8,2.09616]
[1749234568832,0.80264,2490.0,2489.9,0.80263]
[1749234569631,0.80264,2490.0,2489.9,0.80264]
[1749234570532,5.4725,2490.2,2489.8,0.6494]
[1749234570725,6.27508,2490.2,2490.1,0.80258]
[1749234570924,7.25480755,2490.2,2490.1,0.80258]
[1749234571124,0.80259,2490.1,2490.0,0.80259]
[1749234571632,6.27507,2490.2,2490.1,0.80258]
[1749234571833,7.2546717,2490.2,2490.1,0.80258]
[1749234572435,2.4666717,2490.2,2490.1,0.80258]
[1749234572635,7.2536717,2490.2,2490.1,0.80258]
[1749234574135,0.80261,2490.1,2490.0,0.80259]
[1749234574933,0.80261,2490.1,2490.0,0.87392351]
[1749234575134,6.27407,2490.2,2490.1,0.80258]
[1749234575332,0.80257,2490.2,2490.1,0.80258]
[1749234577334,0.80254,2490.3,2490.2,0.80252]
[1749234577532,0.97929997,2490.3,2490.2,0.80252]
[1749234577935,4.79302216,2490.7,2490.0,9.25388351]
[1749234578235,0.9792197,2490.6,2490.5,0.80245]
[1749234578638,1.7816397,2490.6,2490.5,0.80245]
[1749234579138,0.9792197,2490.6,2490.5,0.80245]
[1749234580138,1.7816397,2490.6,2490.5,0.80245]
[1749234580338,0.9792197,2490.6,2490.5,0.80245]
[1749234580536,1.7816397,2490.6,2490.5,0.80245]
[1749234581443,0.9792197,2490.6,2490.5,0.80245]
[1749234581741,1.7816397,2490.6,2490.5,0.80245]
[1749234582036,0.9792197,2490.6,2490.5,0.80245]
[1749234582244,0.00602216,2490.7,2490.6,0.80242]
[1749234582541,0.00602216,2490.7,2490.6,4.01022]
[1749234582740,0.00602216,2490.7,2490.6,5.37892]
[1749234585236,0.00602216,2490.7,2490.6,10.37892]
[1749234586450,5.58819,2491.4,2491.3,0.80219]
[1749234586641,6.56852769,2491.4,2491.3,0.80219]
[1749234587439,1.78252769,2491.4,2491.3,0.80219]
[1749234587744,0.80221,2491.3,2491.2,0.8022]
[1749234587935,1.78254769,2491.3,2491.2,0.8022]
[1749234588441,0.80221,2491.3,2491.2,0.8022]
[1749234588742,0.80223,2491.2,2491.1,6.61136216]
[1749234588942,0.80221,2491.3,2491.2,0.8022]
[1749234589630,0.80218,2491.4,2491.3,0.80216]
[1749234589834,1.7821976,2491.5,2491.4,0.80216]
[1749234590034,1.78219198,2491.5,2491.4,0.80216]
[1749234590236,0.80219,2491.4,2491.3,0.80217]
[1749234590440,1.78223198,2491.4,2491.3,0.80217]
[1749234590640,0.98004198,2491.4,2491.3,0.80217]
[1749234591039,1.78220198,2491.4,2491.3,0.80217]
[1749234591342,1.78220198,2491.4,2491.3,0.87350351]
[1749234592144,1.78220198,2491.4,2491.3,0.80217]
[1749234592542,0.80216,2491.4,2491.3,0.80217]
[1749234593140,0.80216,2491.4,2491.3,0.87350351]
[1749234594241,0.80216,2491.4,2491.3,0.80217]
[1749234595946,0.80217,2491.5,2491.4,0.80213]
[1749234596138,1.77952767,2491.5,2491.4,0.80213]
[1749234596543,0.80217,2491.5,2491.4,0.80213]
[1749234596843,0.80219,2491.4,2491.3,0.80217]
[1749234597236,0.80215,2491.5,2491.4,0.80213]
[1749234597732,1.77956149,2491.5,2491.4,0.80213]
[1749234599148,0.80223,2491.3,2491.2,0.80222]
[1749234599448,0.80223,2491.2,2491.1,4.64956216]
[1749234601745,2.16e-06,2491.6,2491.2,0.80223]
[1749234601945,3.14739932,2493.2,2492.8,0.80171]
[1749234602147,0.04514202,2493.9,2493.8,0.80139]
[1749234602338,5.0,2494.4,2493.0,3.2078]
[1749234602543,0.635,2495.7,2493.0,3.2078]
[1749234602544,3.2078,2494.2,2493.3,1.1908186]
[1749234602842,0.635,2494.3,2494.2,0.80126]
[1749234603051,0.80136,2493.9,2493.5,0.00602216]
[1749234603245,4.998,2493.8,2493.5,0.00602216]
[1749234603545,0.635,2493.7,2493.5,0.00602216]
[1749234603942,4.998,2493.6,2493.5,0.00602216]
[1749234604141,0.80145,2493.6,2493.5,0.00602216]
[1749234604341,9.00725,2493.6,2493.5,0.00602216]
[1749234604637,13.2058,2493.6,2492.8,3.2078]
[1749234604837,0.8016,2493.2,2492.8,3.2078]
[1749234605040,4.998,2493.1,2492.8,4.00951]
[1749234605243,3.2078,2493.3,2492.8,3.2078]
[1749234605447,24.27502216,2494.0,2493.2,3.2078]
[1749234605448,3.2078,2493.9,2493.2,3.2078]
[1749234605646,4.998,2493.8,2493.2,3.2078]
[1749234606041,4.998,2493.8,2493.4,0.80151]
[1749234606245,8.2058,2493.8,2493.2,3.2078]
[1749234606445,0.80156,2493.3,2492.8,3.21382216]
[1749234606644,4.997,2493.2,2492.8,3.21382216]
[1749234606845,4.997,2493.1,2493.0,0.80165]
[1749234607040,0.8015,2493.5,2492.8,3.21382216]
[1749234607248,4.997,2493.5,2493.4,0.8015]
[1749234609157,0.6387,2493.7,2493.6,0.80145]
[1749234609353,5.6357,2493.7,2493.6,4.00925]
[1749234609757,0.6387,2493.7,2493.6,4.00925]
[1749234610055,6.43712,2493.7,2493.6,3.2078]
[1749234610357,13.8435,2493.7,2492.8,1.19684076]
[1749234610653,0.80168,2492.9,2492.8,0.00602216]
[1749234610858,3.2078,2493.4,2492.8,0.00602216]
[1749234611055,0.80168,2492.9,2492.8,3.21382216]
[1749234611252,5.79868,2492.9,2492.8,3.21382216]
[1749234611555,4.997,2492.9,2492.8,4.01553216]
[1749234611753,0.80164,2493.1,2492.9,0.80167]
[1749234612056,4.997,2493.0,2492.9,0.80168]
[1749234613147,0.80163,2493.1,2492.9,0.80168]
[1749234613356,4.997,2493.1,2493.0,0.80165]
[1749234614055,0.675,2493.6,2492.8,3.21382216]
[1749234614254,6.47345,2493.6,2493.5,3.2078]
[1749234614456,5.672,2493.6,2493.5,4.00929]
[1749234614656,0.675,2493.6,2493.5,4.00929]
[1749234614847,1.44014,2493.7,2493.5,4.00926]
[1749234615053,0.6387,2493.7,2493.6,0.80145]
[1749234615457,0.6487,2493.9,2493.8,0.80139]
[1749234615655,6.44606,2493.9,2493.8,0.80139]
[1749234615863,6.44606,2493.9,2493.5,3.2078]
[1749234616049,5.6447,2493.9,2493.8,0.80139]
[1749234616359,0.00602216,2494.0,2493.8,3.2078]
[1749234616569,0.80136,2493.9,2493.8,3.2078]
[1749234617774,7.17006,2493.9,2493.8,3.2078]
[1749234617966,2.17406,2493.9,2493.8,4.00919]
[1749234618271,0.00602216,2494.0,2493.8,4.00919]
[1749234618272,0.00602216,2494.0,2493.9,0.80136]
[1749234618466,0.00602216,2494.0,2493.8,3.2078]
[1749234618671,0.00602216,2494.0,2493.9,0.80136]
[1749234619673,0.80735216,2494.0,2493.9,0.80136]
[1749234619867,0.80736216,2494.0,2493.8,3.2078]
[1749234620064,0.80736216,2494.0,2493.9,0.80136]
[1749234620971,0.00602216,2494.0,2493.9,0.80136]
[1749234622576,0.00602216,2494.0,2493.9,2.12776]
[1749234622767,0.00602216,2494.0,2493.9,2.79596]
[1749234624774,0.00602216,2494.0,2493.9,0.80136]
[1749234625169,8.20882216,2494.0,2493.2,2.00395]
[1749234625371,8.20882216,2494.0,2493.4,3.2078]
[1749234625372,10.18992216,2494.0,2493.4,3.2078]
[1749234625572,5.79638,2493.9,2493.8,0.80139]
[1749234625769,0.68002216,2494.0,2493.9,0.80136]
[1749234626071,0.00602216,2494.0,2493.9,0.80136]
[1749234626471,4.995,2494.6,2494.4,0.8012]
[1749234626663,4.995,2494.6,2494.2,2.00314]
[1749234626664,0.6908,2495.0,2494.7,2.00275]
[1749234626866,0.6977,2495.3,2495.2,0.80094]
[1749234627066,1.49861,2495.3,2495.2,3.2078]
[1749234627263,4.995,2495.4,2495.2,3.2078]
[1749234627264,5.7959,2495.4,2495.2,3.2078]
[1749234627473,0.80091,2495.3,2495.2,4.00872]
[1749234627672,4.995,2495.4,2495.2,3.2078]
[1749234627875,0.80091,2495.3,2495.2,3.2078]
[1749234628268,0.80094,2495.2,2495.1,0.00602216]
[1749234628671,1.3314,2495.3,2495.2,0.80094]
[1749234628876,0.00602216,2495.5,2495.1,2.00842216]
[1749234629080,0.00602216,2495.5,2495.4,4.00868]
[1749234629876,0.80686216,2495.5,2495.4,3.2078]
[1749234630071,0.80686216,2495.5,2495.4,4.00868]
[1749234630273,0.00602216,2495.5,2495.4,4.00868]
[1749234631673,0.00602216,2495.5,2495.4,3.2078]
[1749234631876,0.80686216,2495.5,2495.4,3.2078]
[1749234632075,0.80094,2495.2,2495.1,0.80699216]
[1749234632275,0.80094,2495.2,2495.1,0.00602216]
[1749234633776,0.80094,2495.2,2495.1,0.80699216]
[1749234633972,0.80094,2495.2,2495.1,0.00602216]
[1749234634471,2.09434,2495.2,2495.1,0.80699216]
[1749234634772,0.80094,2495.2,2495.1,0.80698216]
[1749234635174,1.2934,2495.2,2495.1,0.80698216]
[1749234635578,1.3039,2495.4,2495.3,0.80091]
[1749234635772,0.80092,2495.3,2495.2,0.80092]
[1749234635979,1.3039,2495.4,2495.3,0.80091]
[1749234636179,2.10478,2495.4,2495.3,0.80091]
[1749234636881,5.15202216,2495.5,2495.4,0.80088]
[1749234636882,0.00602216,2495.5,2495.4,0.80088]
[1749234637384,0.80686216,2495.5,2495.4,0.80088]
[1749234637580,0.00602216,2495.5,2495.4,0.80088]
[1749234637883,0.80091,2495.3,2495.2,3.2078]
[1749234638080,0.80094,2495.2,2495.1,0.00602216]
[1749234638276,2.85594,2495.2,2495.1,0.00602216]
[1749234638582,0.801,2495.0,2494.9,3.2078]
[1749234638886,8.00098,2495.2,2495.1,0.80097]
[1749234639186,0.684,2495.2,2495.1,0.80097]
[1749234639384,0.80091,2495.3,2495.2,0.80094]
[1749234640177,1.44459,2495.4,2495.3,0.80091]
[1749234640582,0.6437,2495.4,2495.3,0.80091]
[1749234640887,0.8009,2495.4,2495.3,0.80088]
[1749234641085,0.80690216,2495.5,2495.4,0.80088]
[1749234642084,0.00602216,2495.5,2495.4,0.80088]
[1749234643073,0.8009,2495.4,2495.3,0.80089]
[1749234643582,0.00602216,2495.5,2495.4,0.80088]
[1749234643777,0.80686216,2495.5,2495.4,0.80088]
[1749234644279,2.06416216,2495.5,2495.4,0.80088]
[1749234644781,1.26332216,2495.5,2495.4,0.80088]
[1749234644976,1.26332216,2495.5,2495.3,0.8009]
[1749234645180,0.80091,2495.4,2495.3,0.8009]
[1749234645487,2.06419216,2495.5,2495.4,0.80088]
[1749234646983,3.26545216,2495.5,2495.2,3.2078]
[1749234647187,0.80091,2495.3,2495.2,3.2078]
[1749234647575,0.80091,2495.3,2495.2,4.00874]
[1749234648082,5.94491,2495.3,2495.2,3.2078]
[1749234648386,0.801,2495.0,2494.9,3.21382216]
[1749234648877,0.801,2495.0,2494.9,4.01486216]
[1749234649278,2.7998,2495.0,2494.9,4.01486216]
[1749234649485,2.7998,2495.0,2494.9,3.21382216]
[1749234649686,2.7998,2495.0,2494.9,0.00602216]
[1749234650287,2.7998,2495.0,2494.9,0.80706216]
[1749234651387,2.7998,2495.0,2494.9,0.00602216]
[1749234652288,2.7998,2495.0,2494.9,0.80706216]
[1749234652585,2.7998,2495.0,2494.9,0.00602216]
[1749234653293,2.7998,2495.0,2494.1,1.18303677]
[1749234653294,2.00268,2494.8,2494.1,1.18303677]
[1749234653591,0.80129,2494.1,2494.0,4.00909]
[1749234653786,0.80129,2494.2,2494.1,0.80126]
[1749234654383,0.80129,2494.1,2494.0,3.2078]
[1749234655290,0.80136,2493.9,2493.8,0.80138]
[1749234655783,2.06986,2494.0,2493.9,0.80136]
[1749234655983,1.2685,2494.0,2493.6,1.18303677]
[1749234656183,1.2685,2494.0,2493.8,0.80136]
[1749234656184,0.80136,2493.9,2493.8,0.80136]
[1749234656477,0.80145,2493.7,2493.6,0.80143]
[1749234656678,0.80145,2493.6,2493.5,5.19229677]
[1749234656886,0.80144,2493.7,2493.6,0.80142]
[1749234657280,1.43602,2493.8,2493.7,0.80142]
[1749234657489,0.80144,2493.7,2493.6,0.80142]
[1749234657686,1.9031,2493.8,2493.7,0.80142]
[1749234658789,5.85488,2494.3,2493.5,4.39083677]
[1749234658790,0.644,2494.3,2493.6,1.18303677]
[1749234658980,6.59123,2494.3,2494.2,0.80126]
[1749234659185,5.79,2494.3,2494.2,0.80126]
[1749234659485,6.59123,2494.3,2494.2,0.80126]
[1749234659985,5.146,2494.3,2494.2,0.80126]
[1749234660290,0.80129,2494.2,2494.1,0.80127]
[1749234660893,0.80125,2494.3,2494.2,0.80123]
[1749234661592,5.15202216,2494.4,2494.0,3.2078]
[1749234661789,5.15202216,2494.4,2494.0,4.0091]
[1749234661790,0.80129,2494.1,2494.0,4.0091]
[1749234661995,0.80136,2493.9,2493.8,0.80138]
[1749234662292,0.80139,2493.8,2493.7,4.0092]
[1749234663385,7.7343,2494.0,2493.7,4.0092]
[1749234663589,0.80138,2493.9,2493.8,0.80136]
[1749234663890,0.80139,2493.8,2493.7,4.0092]
[1749234664090,0.80139,2493.8,2493.7,3.2078]
[1749234664296,0.80149,2493.5,2493.4,4.00931]
[1749234664498,1.3284,2494.0,2493.9,0.80136]
[1749234665486,0.6487,2494.0,2493.9,0.80136]
[1749234665792,0.00602216,2494.4,2494.3,0.80123]
[1749234665995,0.80722216,2494.4,2494.3,4.00903]
[1749234666195,0.00602216,2494.4,2494.3,4.00903]
[1749234667896,0.00602216,2494.4,2494.3,4.69393]
[1749234668097,0.00602216,2494.4,2494.3,4.00903]
[1749234669095,5.807,2494.9,2494.5,2.0029]
[1749234669295,5.807,2494.9,2494.8,3.2078]
[1749234669602,6.60804,2494.9,2494.8,4.00887]
[1749234669801,0.80116,2494.6,2494.4,4.5023]
[1749234669990,5.807,2494.9,2494.4,3.2078]
[1749234670195,5.81302216,2494.9,2494.8,0.80107]
[1749234670395,5.81302216,2494.9,2494.7,3.2078]
[1749234670701,0.80116,2494.5,2494.4,3.21382216]
[1749234672100,1.44526,2494.5,2494.4,3.21382216]
[1749234672601,0.80139,2493.8,2493.7,1.19069777]
[1749234672798,0.80142,2493.7,2493.6,3.2078]
[1749234672998,0.80152,2493.5,2493.4,0.8015]
[1749234673705,0.80159,2493.3,2493.2,0.80156]
[1749234674097,0.00602216,2493.5,2493.4,0.80152]
[1749234674098,0.80755216,2493.5,2493.4,0.80152]
[1749234674399,2.10945216,2493.5,2493.4,0.80152]
[1749234674593,0.80755216,2493.5,2493.4,0.80152]
[1749234674795,3.2078,2494.6,2493.9,2.00337]
[1749234675006,0.80127,2494.2,2494.0,0.6763]
[1749234675203,0.80125,2494.3,2494.2,0.80125]
[1749234675502,0.80121,2494.4,2494.3,0.80122]
[1749234676496,0.6473,2494.5,2494.1,0.00602216]
[1749234676702,0.80125,2494.3,2494.2,0.80124]
[1749234676904,0.80122,2494.4,2494.3,0.80121]
[1749234677298,0.80125,2494.3,2494.1,0.00602216]
[1749234677502,0.6473,2494.5,2494.1,0.00602216]
[1749234677805,2.06723,2494.4,2494.3,0.80121]
[1749234677995,0.80126,2494.3,2494.2,0.80125]
[1749234678204,0.80126,2494.2,2494.1,0.80730216]
[1749234678404,1.266,2494.4,2494.2,0.80125]
[1749234678605,0.80126,2494.3,2494.2,0.80125]
[1749234679199,1.266,2494.4,2494.3,0.80123]
[1749234679704,2.06722,2494.4,2494.3,0.80123]
[1749234680305,0.6473,2494.5,2494.4,0.8012]
[1749234681302,1.44846,2494.5,2494.4,0.8012]
[1749234682206,0.80123,2494.4,2494.3,0.8012]
[1749234683910,0.80123,2494.4,2494.1,6.40982826]
[1749234683911,0.80126,2494.2,2494.1,5.20786826]
[1749234684306,0.80126,2494.2,2494.1,3.21382216]
[1749234684509,0.80126,2494.2,2494.1,0.00602216]
[1749234684911,2.09366,2494.2,2494.1,0.00602216]
[1749234685712,5.30146,2494.2,2494.1,0.00602216]
[1749234686813,5.30146,2494.2,2493.5,1.58721567]
[1749234686814,0.80145,2493.6,2493.5,1.1927761]
[1749234687017,0.80149,2493.5,2493.4,4.4005761]
[1749234687725,0.80149,2493.5,2493.4,5.2020961]
[1749234687912,0.80149,2493.5,2493.4,1.1927761]
[1749234688120,0.80152,2493.4,2493.3,1.1927761]
[1749234688420,2.16532,2493.4,2493.3,1.1927761]
[1749234688820,0.80158,2493.2,2493.1,1.8381761]
[1749234689119,0.80158,2493.2,2493.1,2.6397861]
[1749234689417,3.2078,2493.3,2492.9,1.9944461]
[1749234689616,0.80168,2492.9,2492.8,2.06579961]
[1749234689814,0.80168,2492.9,2492.8,0.80169]
[1749234690010,0.6907,2493.0,2492.9,0.80168]
[1749234690215,0.00602216,2493.3,2493.2,0.80158]
[1749234690413,0.00602216,2493.3,2493.2,4.00938]
[1749234690718,0.00602216,2493.3,2493.2,0.80158]
[1749234690719,0.80757216,2493.3,2493.2,0.80158]
[1749234691518,0.00602216,2493.3,2493.2,0.80158]
[1749234691719,0.80757216,2493.3,2493.2,0.80158]
[1749234692216,0.00602216,2493.3,2493.2,0.80158]
[1749234692613,3.2078,2493.9,2493.8,0.80139]
[1749234692817,0.6343,2494.1,2494.0,0.80133]
[1749234693518,1.43559,2494.1,2494.0,0.80133]
[1749234694120,5.144,2494.2,2494.1,0.80129]
[1749234694521,5.144,2494.2,2494.0,0.80131]
[1749234694724,0.80132,2494.1,2494.0,0.80131]
[1749234695820,0.80136,2493.9,2493.8,0.00602216]
[1749234696421,2.18316,2493.9,2493.8,0.00602216]
[1749234699027,2.18316,2493.9,2493.8,0.80741216]
[1749234699325,2.18316,2493.9,2493.8,0.00602216]
[1749234701026,2.18316,2493.9,2493.8,0.80741216]
[1749234701528,2.18316,2493.9,2493.8,0.00602216]
[1749234701729,5.39096,2493.9,2493.8,0.00602216]
[1749234701926,0.80152,2493.4,2493.3,1.19296884]
[1749234702129,0.80155,2493.3,2493.2,1.45948]
[1749234703026,0.80154,2493.4,2493.3,0.80152]
[1749234703229,1.9697,2493.8,2493.2,2.66184]
[1749234703429,2.65376,2494.0,2493.8,0.80136]
[1749234703430,5.94539,2493.9,2493.8,0.80136]
[1749234704731,0.80142,2493.7,2493.6,5.20220884]
[1749234705130,0.80142,2493.7,2493.6,4.40076884]
[1749234705330,0.80145,2493.6,2493.5,1.19296884]
[1749234705632,0.80152,2493.4,2493.3,1.19296884]
[1749234705826,0.80155,2493.3,2493.2,1.19296884]
[1749234706132,0.80158,2493.2,2493.1,1.99457884]
[1749234706327,0.80158,2493.2,2493.1,0.80161]
[1749234706532,7.32532,2493.5,2493.4,0.80152]
[1749234707032,0.80155,2493.3,2493.2,1.99780384]
[1749234708635,0.80158,2493.2,2493.1,1.99785384]
[1749234709032,0.80158,2493.2,2493.1,1.19624384]
[1749234709627,0.80158,2493.2,2493.1,1.99785384]
[1749234710327,0.80157,2493.3,2493.2,0.80155]
[1749234711334,2.08403,2493.4,2493.3,0.80155]
[1749234711531,0.80153,2493.4,2493.3,0.80155]
[1749234711834,0.80157,2493.3,2493.2,0.80153]
[1749234712435,0.80157,2493.3,2493.2,1.99777384]
[1749234712733,0.80154,2493.4,2493.3,0.80152]
[1749234712936,8.3528,2493.6,2493.2,3.20018384]
[1749234713129,0.6427,2493.9,2493.8,0.80139]
[1749234713334,9.73322216,2494.3,2494.0,0.8013]
[1749234713630,0.80135,2494.0,2493.9,0.80134]
[1749234714135,0.80136,2493.9,2493.8,1.99762384]
[1749234714537,0.80136,2493.9,2493.8,1.19624384]
[1749234714740,0.80138,2493.9,2493.8,1.99760384]
[1749234714937,0.80138,2493.9,2493.8,0.80136]
[1749234715440,0.80138,2493.9,2493.8,1.99760384]
[1749234715739,0.80139,2493.8,2493.7,1.19624384]
[1749234716639,0.80139,2493.8,2493.7,1.998613]
[1749234717742,0.80139,2493.8,2493.7,0.80139]
[1749234717940,0.80142,2493.7,2493.6,5.206453]
[1749234718138,0.80141,2493.8,2493.7,0.80139]
[1749234720643,0.80142,2493.7,2493.6,5.206463]
[1749234720835,4.00922,2493.7,2493.6,1.197223]
[1749234721035,0.80152,2493.4,2493.3,0.80154]
[1749234721236,0.80155,2493.3,2493.2,1.998783]
[1749234721634,0.80155,2493.3,2493.2,1.197223]
[1749234722035,0.80158,2493.2,2493.1,1.998823]
[1749234722235,0.80155,2493.4,2493.3,0.80152]
[1749234722538,0.80155,2493.3,2493.1,1.197223]
[1749234722733,0.80161,2493.1,2493.0,4.405023]
[1749234723138,5.87661,2493.1,2493.0,4.405023]
[1749234723341,5.87661,2493.1,2493.0,3.2078]
[1749234724236,0.80171,2492.8,2492.7,1.197223]
[1749234724437,0.80184,2492.4,2492.3,1.197223]
[1749234724642,0.80182,2492.5,2492.4,0.80182]
[1749234725340,3.2078,2492.8,2492.7,0.80174]
[1749234725549,1.47459,2493.2,2492.9,0.80168]
[1749234725843,0.80164,2493.1,2492.9,0.80168]
[1749234726036,5.076,2493.3,2492.9,0.80168]
[1749234726236,0.80163,2493.1,2492.9,0.80168]
[1749234726438,0.80767216,2493.0,2492.9,0.80168]
[1749234726642,0.00602216,2493.0,2492.9,0.80168]
[1749234728638,0.80168,2492.9,2492.8,1.58721567]
[1749234728835,5.076,2492.9,2492.6,1.19789877]
[1749234729039,0.80178,2492.6,2492.5,0.80181]
[1749234729237,0.80176,2492.7,2492.6,0.80176]
[1749234729439,0.80178,2492.6,2492.5,1.19789877]
[1749234729942,0.80184,2492.4,2492.3,1.99975877]
[1749234730339,0.80184,2492.4,2492.3,0.80186]
[1749234730842,0.80182,2492.5,2492.4,0.80181]
[1749234731042,0.80186,2492.4,2492.3,0.80185]
[1749234731248,0.80183,2492.5,2492.4,0.8018]
[1749234732640,0.80183,2492.5,2492.4,0.80184]
[1749234733145,0.8018,2492.6,2492.5,0.80178]
[1749234733846,0.80185,2492.5,2492.4,0.80182]
[1749234734145,0.80179,2492.6,2492.5,0.80177]
[1749234734343,5.7211,2492.8,2492.7,0.80174]
[1749234734746,0.00602216,2493.0,2492.9,0.80168]
[1749234734943,0.00602216,2493.0,2492.8,0.80169]
[1749234734944,0.80171,2492.9,2492.8,0.80169]
[1749234735347,0.80174,2492.7,2492.6,2.18174]
[1749234735552,0.80174,2492.7,2492.6,1.49254]
[1749234735744,0.80178,2492.6,2492.5,3.2078]
[1749234735945,0.80181,2492.5,2492.4,0.80181]
[1749234737045,0.80181,2492.5,2492.2,4.40454198]
[1749234737046,0.80187,2492.4,2492.3,0.80185]
[1749234737248,0.80187,2492.4,2492.2,4.40454198]
[1749234737249,0.80181,2492.6,2492.5,0.80178]
[1749234738249,0.80177,2492.7,2492.6,0.80174]
[1749234738550,0.80171,2492.9,2492.8,0.80169]
[1749234738753,0.80770216,2493.0,2492.9,0.80168]
[1749234738946,0.00602216,2493.0,2492.9,0.80168]
[1749234739646,0.00602216,2493.0,2492.9,2.19838]
[1749234740346,0.00602216,2493.0,2492.9,3.78559567]
[1749234740844,0.00602216,2493.0,2492.9,3.3927409]
[1749234741555,0.00602216,2493.0,2492.9,3.39274505]
[1749234741757,0.00602216,2493.0,2492.9,2.19838]
[1749234742448,0.00602216,2493.0,2492.9,3.39277175]
[1749234743156,0.00602216,2493.0,2492.9,2.19838]
[1749234744452,0.00602216,2493.0,2492.9,0.80168]
[1749234745348,0.00602216,2493.0,2492.9,2.38889567]
[1749234746056,0.00602216,2493.0,2492.9,3.78369567]
[1749234748358,0.00602216,2493.0,2492.9,2.19648]
[1749234748763,3.2078,2493.6,2492.9,11.4708]
[1749234749060,0.6751,2493.8,2493.5,2.00369]
[1749234749256,2.08863,2494.1,2494.0,0.80133]
[1749234749448,0.80133,2494.1,2494.0,0.80133]
[1749234749856,0.80128,2494.2,2494.1,0.80126]
[1749234750056,6.42292216,2494.3,2494.0,3.2078]
[1749234750057,7.22418216,2494.3,2494.0,3.2078]
[1749234750255,0.00602216,2494.3,2494.2,0.80126]
[1749234750761,0.00602216,2494.3,2494.2,1.99707231]
[1749234750958,0.00602216,2494.3,2494.2,2.07766]
[1749234751258,0.00602216,2494.3,2494.2,3.27044162]
[1749234751668,0.00602216,2494.3,2494.2,2.07766]
[1749234751862,0.00602216,2494.3,2494.2,3.27032897]
[1749234752553,6.4255,2494.9,2494.2,3.27032897]
[1749234752554,1.3495,2494.9,2494.8,0.80107]
[1749234752859,0.6673,2495.2,2495.1,0.80097]
[1749234753057,1.946,2495.7,2495.2,2.00234]
[1749234753253,3.2078,2496.0,2495.4,3.2078]
[1749234753254,0.80074,2495.9,2495.4,3.2078]
[1749234753457,3.2078,2496.0,2495.4,3.2078]